[Event "AUT Bundesliga 2022-23"]
[Site "Jenbach"]
[Date "2022.11.06"]
[Round "4.27"]
[White "Berchtenbreiter, Maximilian"]
[Black "Krassowizkij, Jaroslaw"]
[Result "1/2-1/2"]
[ECO "C67"]
[WhiteElo "2509"]
[BlackElo "2439"]
[Annotator "ChessBase"]
[PlyCount "73"]
[EventDate "2022.11.03"]
[EventType "team-tourn"]
[EventCountry "AUT"]
[SourceTitle "playchess.com"]
[Source "ChessBase"]
[SourceQuality "1"]
[TimeControl "40/5400+30:1800+30"]

1. e4 {[%emt 0:00:03]} e5 {[%emt 0:00:04]} 2. Nf3 {[%emt 0:00:06]} Nc6 {[%emt 0:00:02]} 3. Bb5 {[%emt 0:00:11]} Nf6 {[%emt 0:00:04]} 4. O-O {[%emt 0:00:07]} Nxe4 {[%emt 0:00:05]} 5. Re1 {[%emt 0:00:05]} Nd6 {[%emt 0:00:04]} 6. Nxe5 {[%emt 0:00:04]} Be7 {[%emt 0:00:17]} 7. Bf1 {[%emt 0:02:00]} Nxe5 {[%emt 0:00:04]} 8. Rxe5 {[%emt 0:00:04]} O-O {[%emt 0:00:06]} 9. d4 {[%emt 0:00:03]} Bf6 {[%emt 0:00:21]} 10. Re1 {[%emt 0:00:05]} Re8 {[%emt 0:00:51]} 11. c3 {[%emt 0:22:17]} Rxe1 {[%emt 0:10:34]} 12. Qxe1 {[%emt 0:00:03]} Ne8 {[%emt 0:01:27]} 13. d5 {[%emt 0:24:56]} c6 {[%emt 0:19:28]} 14. Qe4 {[%emt 0:04:44]} Qe7 {[%emt 0:17:20]} 15. Nd2 {[%emt 0:19:08]} cxd5 {[%emt 0:00:33]} 16. Qxd5 {[%emt 0:00:25]} Nc7 {[%emt 0:00:13]} 17. Qf3 {[%emt 0:04:21]} d5 {[%emt 0:02:17]} 18. Nb3 {[%emt 0:00:04]} Bd7 {[%emt 0:10:50]} 19. Be3 {[%emt 0:03:52]} Bc6 {[%emt 0:00:56]} 20. Bc5 {[%emt 0:04:40]} Qd7 {[%emt 0:09:08]} 21. Bd4 {[%emt 0:01:13]} Bxd4 {[%emt 0:00:05]} 22. Nxd4 {[%emt 0:00:11]} Ne6 {[%emt 0:00:02]} 23. Rd1 {[%emt 0:01:06]} Nxd4 {[%emt 0:04:23]} 24. Rxd4 {[%emt 0:00:05]} Re8 {[%emt 0:00:40]} 25. Qd1 {[%emt 0:02:15]} Re4 {[%emt 0:01:45]} 26. Rxe4 {[%emt 0:05:13]} dxe4 {[%emt 0:00:04]} 27. Qxd7 {[%emt 0:00:03]} Bxd7 {[%emt 0:00:04]} 28. Bc4 {[%emt 0:00:03]} Kf8 {[%emt 0:03:55]} 29. Bd5 {[%emt 0:01:51]} Bc6 {[%emt 0:00:04]} 30. Bxc6 {[%emt 0:02:15]} bxc6 {[%emt 0:00:05]} 31. g4 {[%emt 0:02:43]} Ke7 {[%emt 0:04:48]} 32. Kf1 {[%emt 0:00:22]} Kf6 {[%emt 0:12:10]} 33. Ke2 {[%emt 0:00:09]} Ke5 {[%emt 0:00:14]} 34. Ke3 {[%emt 0:00:32]} f6 {[%emt 0:00:10]} 35. f4+ {[%emt 0:01:19]} exf3 {[%emt 0:00:05]} 36. Kxf3 {[%emt 0:00:06]} f5 {[%emt 0:02:20]} 37. gxf5 {[%emt 0:01:06]} 1/2-1/2

[Event "AUT Bundesliga 2022-23"]
[Site "Jenbach"]
[Date "2022.11.06"]
[Round "4.28"]
[White "Richter, Nils"]
[Black "Hess, Max"]
[Result "1/2-1/2"]
[ECO "E04"]
[WhiteElo "2395"]
[BlackElo "2361"]
[Annotator "ChessBase"]
[PlyCount "60"]
[EventDate "2022.11.03"]
[EventType "team-tourn"]
[EventCountry "AUT"]
[SourceTitle "playchess.com"]
[Source "ChessBase"]
[SourceQuality "1"]
[TimeControl "40/5400+30:1800+30"]

1. d4 {[%emt 0:00:02]} d5 {[%emt 0:00:07]} 2. c4 {[%emt 0:00:09]} e6 {[%emt 0:00:03]} 3. Nf3 {[%emt 0:00:11]} Nf6 {[%emt 0:00:22]} 4. g3 {[%emt 0:00:11]} dxc4 {[%emt 0:00:52]} 5. Bg2 {[%emt 0:00:09]} Nbd7 {[%emt 0:00:09]} 6. O-O {[%emt 0:02:20]} Rb8 {[%emt 0:00:11]} 7. a4 {[%emt 0:05:25]} a6 {[%emt 0:02:56]} 8. a5 {[%emt 0:01:29]} Bd6 {[%emt 0:00:15]} 9. Nbd2 {[%emt 0:08:16]} b5 {[%emt 0:00:20]} 10. axb6 {[%emt 0:00:09]} Nxb6 {[%emt 0:00:05]} 11. Qc2 {[%emt 0:05:35]} Bb7 {[%emt 0:04:08]} 12. Nxc4 {[%emt 0:04:36]} Be4 {[%emt 0:05:20]} 13. Nxd6+ {[%emt 0:03:50]} cxd6 {[%emt 0:00:43]} 14. Qd1 {[%emt 0:02:30]} O-O {[%emt 0:01:32]} 15. Rxa6 {[%emt 0:02:22]} Qd7 {[%emt 0:00:11]} 16. Ne1 {[%emt 0:08:58]} Bxg2 {[%emt 0:03:58]} 17. Nxg2 {[%emt 0:00:10]} Rfc8 {[%emt 0:08:35]} 18. Nf4 {[%emt 0:05:21]} Qb7 {[%emt 0:07:38]} 19. Ra1 {[%emt 0:04:28]} h6 {[%emt 0:11:24]} 20. Nd3 {[%emt 0:05:32]} Qd5 {[%emt 0:06:31]} 21. b3 {[%emt 0:10:56]} Nbd7 {[%emt 0:07:11]} 22. b4 {[%emt 0:09:50]} Qxd4 {[%emt 0:00:53]} 23. Bb2 {[%emt 0:00:01]} Qb6 {[%emt 0:03:23]} 24. Qa4 {[%emt 0:02:22]} Qb7 {[%emt 0:03:49]} 25. Rfc1 {[%emt 0:03:11]} Nd5 {[%emt 0:07:46]} 26. b5 {[%emt 0:08:24]} Rd8 {[%emt 0:14:09]} 27. Rc6 {[%emt 0:01:33]} Qxb5 {[%emt 0:04:19]} 28. Qxb5 {[%emt 0:00:49]} Rxb5 {[%emt 0:00:02]} 29. Rxd6 {[%emt 0:00:05]} Rb6 {[%emt 0:00:31]} 30. Rxb6 {[%emt 0:01:41]} N5xb6 {[%emt 0:00:14]} 1/2-1/2

[Event "AUT Bundesliga 2022-23"]
[Site "Jenbach"]
[Date "2022.11.06"]
[Round "4.29"]
[White "Ciolek, Andreas"]
[Black "Deuer, Marius"]
[Result "1/2-1/2"]
[ECO "B10"]
[WhiteElo "2301"]
[BlackElo "2326"]
[Annotator "ChessBase"]
[PlyCount "72"]
[EventDate "2022.11.03"]
[EventType "team-tourn"]
[EventCountry "AUT"]
[SourceTitle "playchess.com"]
[Source "ChessBase"]
[SourceQuality "1"]
[TimeControl "40/5400+30:1800+30"]

1. e4 {[%emt 0:00:14]} c6 {[%emt 0:00:11]} 2. Nc3 {[%emt 0:01:22]} d5 {[%emt 0:00:49]} 3. Nf3 {[%emt 0:00:07]} dxe4 {[%emt 0:00:09]} 4. Nxe4 {[%emt 0:00:12]} Nf6 {[%emt 0:00:06]} 5. Qe2 {[%emt 0:00:40]} Nxe4 {[%emt 0:02:29]} 6. Qxe4 {[%emt 0:01:34]} Qa5 {[%emt 0:00:10]} 7. Bd3 {[%emt 0:12:30]} e6 {[%emt 0:16:42]} 8. c3 {[%emt 0:05:15]} Nd7 {[%emt 0:03:30]} 9. Bc2 {[%emt 0:00:55]} Nf6 {[%emt 0:01:03]} 10. Qe2 {[%emt 0:00:57]} Bd6 {[%emt 0:13:21]} 11. d4 {[%emt 0:01:54]} h6 {[%emt 0:06:54]} 12. O-O {[%emt 0:00:56]} Qc7 {[%emt 0:07:35]} 13. Re1 {[%emt 0:01:19]} b6 {[%emt 0:00:28]} 14. Ne5 {[%emt 0:03:37]} Bb7 {[%emt 0:04:12]} 15. Bf4 {[%emt 0:06:02]} O-O-O {[%emt 0:05:28]} 16. a4 {[%emt 0:05:10]} g5 {[%emt 0:07:37]} 17. Bd2 {[%emt 0:01:32]} Nd5 {[%emt 0:01:12]} 18. c4 {[%emt 0:06:16]} Nf4 {[%emt 0:01:44]} 19. Bxf4 {[%emt 0:00:29]} gxf4 {[%emt 0:00:04]} 20. Be4 {[%emt 0:10:29]} a5 {[%emt 0:10:48]} 21. Qf3 {[%emt 0:02:48]} Bxe5 {[%emt 0:01:38]} 22. dxe5 {[%emt 0:00:02]} Rd4 {[%emt 0:00:24]} 23. Rac1 {[%emt 0:06:52]} c5 {[%emt 0:05:24]} 24. Qxf4 {[%emt 0:00:40]} f5 {[%emt 0:00:05]} 25. Bxb7+ {[%emt 0:00:48]} Qxb7 {[%emt 0:00:07]} 26. Qf3 {[%emt 0:03:36]} Qxf3 {[%emt 0:00:36]} 27. gxf3 {[%emt 0:00:05]} Rd2 {[%emt 0:04:16]} 28. b3 {[%emt 0:02:05]} Rhd8 {[%emt 0:02:38]} 29. Rc3 {[%emt 0:09:39]} R8d4 {[%emt 0:00:42]} 30. Rce3 {[%emt 0:03:25]} h5 {[%emt 0:03:59]} 31. R1e2 {[%emt 0:01:03]} Rd1+ {[%emt 0:00:30]} 32. Kg2 {[%emt 0:03:01]} h4 {[%emt 0:00:45]} 33. Re1 {[%emt 0:01:29]} R1d2 {[%emt 0:00:25]} 34. R1e2 {[%emt 0:00:31]} Rd1 {[%emt 0:00:47]} 35. Re1 {[%emt 0:00:16]} R1d2 {[%emt 0:00:38]} 36. R1e2 {[%emt 0:00:33]} Rd1 {[%emt 0:00:31]} 1/2-1/2

[Event "AUT Bundesliga 2022-23"]
[Site "Jenbach"]
[Date "2022.11.06"]
[Round "4.30"]
[White "Neyman, Igor"]
[Black "Wohlfahrt, Herbert"]
[Result "1/2-1/2"]
[ECO "A50"]
[WhiteElo "2354"]
[BlackElo "2318"]
[Annotator "ChessBase"]
[PlyCount "64"]
[EventDate "2022.11.03"]
[EventType "team-tourn"]
[EventCountry "AUT"]
[SourceTitle "playchess.com"]
[Source "ChessBase"]
[SourceQuality "1"]
[TimeControl "40/5400+30:1800+30"]

1. d4 {[%emt 0:00:08]} Nf6 {[%emt 0:00:05]} 2. c4 {[%emt 0:00:32]} a6 {[%emt 0:00:06]} 3. Nc3 {[%emt 0:14:30]} c5 {[%emt 0:00:22]} 4. e3 {[%emt 0:03:37]} e6 {[%emt 0:00:20]} 5. Nf3 {[%emt 0:11:33]} d5 {[%emt 0:00:24]} 6. cxd5 {[%emt 0:06:58]} exd5 {[%emt 0:00:06]} 7. Be2 {[%emt 0:00:43]} Nc6 {[%emt 0:01:37]} 8. O-O {[%emt 0:00:39]} Bd6 {[%emt 0:03:27]} 9. dxc5 {[%emt 0:04:43]} Bxc5 {[%emt 0:00:08]} 10. Nd4 {[%emt 0:05:10]} O-O {[%emt 0:05:23]} 11. b3 {[%emt 0:02:24]} Nxd4 {[%emt 0:08:39]} 12. exd4 {[%emt 0:00:19]} Bb4 {[%emt 0:00:02]} 13. Bd2 {[%emt 0:07:13]} Re8 {[%emt 0:05:59]} 14. Ne4 {[%emt 0:12:15]} Nxe4 {[%emt 0:09:09]} 15. Bxb4 {[%emt 0:00:10]} Qb6 {[%emt 0:00:19]} 16. Be1 {[%emt 0:02:27]} Bd7 {[%emt 0:01:19]} 17. f3 {[%emt 0:01:51]} Nd6 {[%emt 0:00:24]} 18. Bf2 {[%emt 0:01:05]} Bb5 {[%emt 0:03:03]} 19. Re1 {[%emt 0:01:05]} Bxe2 {[%emt 0:02:42]} 20. Rxe2 {[%emt 0:00:05]} Rxe2 {[%emt 0:00:10]} 21. Qxe2 {[%emt 0:00:05]} Re8 {[%emt 0:00:53]} 22. Qd3 {[%emt 0:01:46]} Qc6 {[%emt 0:01:05]} 23. a4 {[%emt 0:01:55]} g6 {[%emt 0:03:05]} 24. g4 {[%emt 0:02:51]} f6 {[%emt 0:04:24]} 25. Bg3 {[%emt 0:02:01]} Nf7 {[%emt 0:00:21]} 26. Bf4 {[%emt 0:01:50]} Rc8 {[%emt 0:03:27]} 27. Rc1 {[%emt 0:01:37]} Qe6 {[%emt 0:00:13]} 28. Rxc8+ {[%emt 0:01:25]} Qxc8 {[%emt 0:00:05]} 29. Qd2 {[%emt 0:01:08]} Kg7 {[%emt 0:02:02]} 30. Qb4 {[%emt 0:01:49]} Qd7 {[%emt 0:00:45]} 31. Qb6 {[%emt 0:02:07]} Qc6 {[%emt 0:12:34]} 32. Qxc6 {[%emt 0:01:13]} bxc6 {[%emt 0:00:04]} 1/2-1/2

[Event "AUT Bundesliga 2022-23"]
[Site "Jenbach"]
[Date "2022.11.06"]
[Round "4.31"]
[White "Baumegger, Siegfried"]
[Black "Haba, Petr"]
[Result "1/2-1/2"]
[ECO "A06"]
[WhiteElo "2441"]
[BlackElo "2454"]
[Annotator "ChessBase"]
[PlyCount "64"]
[EventDate "2022.11.03"]
[EventType "team-tourn"]
[EventCountry "AUT"]
[SourceTitle "playchess.com"]
[Source "ChessBase"]
[SourceQuality "1"]
[TimeControl "40/5400+30:1800+30"]

1. Nf3 {[%emt 0:00:04]} d5 {[%emt 0:00:17]} 2. g3 {[%emt 0:00:17]} e6 {[%emt 0:02:16]} 3. Bg2 {[%emt 0:01:28]} Nf6 {[%emt 0:00:09]} 4. O-O {[%emt 0:01:01]} Be7 {[%emt 0:01:06]} 5. c4 {[%emt 0:03:42]} O-O {[%emt 0:01:45]} 6. b3 {[%emt 0:03:26]} b6 {[%emt 0:02:08]} 7. Bb2 {[%emt 0:00:13]} Bb7 {[%emt 0:00:07]} 8. e3 {[%emt 0:01:15]} c5 {[%emt 0:05:50]} 9. Nc3 {[%emt 0:01:12]} dxc4 {[%emt 0:05:43]} 10. bxc4 {[%emt 0:00:36]} Nc6 {[%emt 0:00:05]} 11. Qe2 {[%emt 0:00:44]} Qc7 {[%emt 0:00:44]} 12. Ne1 {[%emt 0:08:05]} Rad8 {[%emt 0:02:57]} 13. Rd1 {[%emt 0:02:03]} a6 {[%emt 0:04:21]} 14. f4 {[%emt 0:01:04]} Na7 {[%emt 0:00:47]} 15. a4 {[%emt 0:04:37]} Bxg2 {[%emt 0:02:15]} 16. Nxg2 {[%emt 0:03:40]} Qd7 {[%emt 0:11:26]} 17. g4 {[%emt 0:08:28]} Qd3 {[%emt 0:02:55]} 18. Qxd3 {[%emt 0:04:32]} Rxd3 {[%emt 0:00:15]} 19. g5 {[%emt 0:00:21]} Ne8 {[%emt 0:01:10]} 20. Kf2 {[%emt 0:05:05]} Rd7 {[%emt 0:04:20]} 21. Ke2 {[%emt 0:06:21]} Nd6 {[%emt 0:02:25]} 22. d3 {[%emt 0:00:12]} Rb8 {[%emt 0:12:14]} 23. Rb1 {[%emt 0:06:06]} b5 {[%emt 0:12:40]} 24. axb5 {[%emt 0:01:00]} axb5 {[%emt 0:00:04]} 25. cxb5 {[%emt 0:01:26]} c4 {[%emt 0:13:50]} 26. Rfd1 {[%emt 0:13:08]} cxd3+ {[%emt 0:01:23]} 27. Rxd3 {[%emt 0:01:16]} Naxb5 {[%emt 0:00:01]} 28. Rbd1 {[%emt 0:01:59]} Nxc3+ {[%emt 0:03:37]} 29. Bxc3 {[%emt 0:00:12]} Ne4 {[%emt 0:00:05]} 30. Rxd7 {[%emt 0:04:57]} Nxc3+ {[%emt 0:00:04]} 31. Kf3 {[%emt 0:01:18]} Nxd1 {[%emt 0:00:06]} 32. Rxd1 {[%emt 0:03:02]} e5 {[%emt 0:02:34]} 1/2-1/2

[Event "AUT Bundesliga 2022-23"]
[Site "Jenbach"]
[Date "2022.11.06"]
[Round "4.32"]
[White "Schwabeneder, Florian"]
[Black "Sadilek, Peter"]
[Result "0-1"]
[ECO "C50"]
[WhiteElo "2414"]
[BlackElo "2319"]
[Annotator "ChessBase"]
[PlyCount "140"]
[EventDate "2022.11.03"]
[EventType "team-tourn"]
[EventCountry "AUT"]
[SourceTitle "playchess.com"]
[Source "ChessBase"]
[SourceQuality "1"]
[TimeControl "40/5400+30:1800+30"]

1. e4 {[%emt 0:00:04]} e5 {[%emt 0:00:29]} 2. Nf3 {[%emt 0:01:50]} Nc6 {[%emt 0:00:07]} 3. Bc4 {[%emt 0:01:18]} Bc5 {[%emt 0:01:14]} 4. O-O {[%emt 0:01:19]} Nf6 {[%emt 0:02:02]} 5. d3 {[%emt 0:00:10]} d6 {[%emt 0:00:27]} 6. c3 {[%emt 0:00:20]} a5 {[%emt 0:00:48]} 7. Re1 {[%emt 0:02:31]} h6 {[%emt 0:10:46]} 8. Nbd2 {[%emt 0:03:13]} O-O {[%emt 0:06:06]} 9. Nf1 {[%emt 0:09:59]} Be6 {[%emt 0:00:52]} 10. Bb5 {[%emt 0:01:26]} Ba7 {[%emt 0:17:39]} 11. Ng3 {[%emt 0:05:49]} Ne7 {[%emt 0:05:19]} 12. h3 {[%emt 0:07:25]} Ng6 {[%emt 0:01:29]} 13. d4 {[%emt 0:00:41]} c6 {[%emt 0:04:30]} 14. Bd3 {[%emt 0:00:33]} Re8 {[%emt 0:03:16]} 15. Be3 {[%emt 0:04:20]} Qc7 {[%emt 0:01:15]} 16. Qc2 {[%emt 0:09:28]} a4 {[%emt 0:06:37]} 17. c4 {[%emt 0:06:54]} exd4 {[%emt 0:02:38]} 18. Nxd4 {[%emt 0:00:10]} Bd7 {[%emt 0:03:07]} 19. Rad1 {[%emt 0:02:21]} Nh4 {[%emt 0:07:59]} 20. Bf1 {[%emt 0:05:18]} Bc5 {[%emt 0:03:20]} 21. Kh1 {[%emt 0:06:38]} Qb6 {[%emt 0:04:25]} 22. f3 {[%emt 0:08:23]} Re7 {[%emt 0:10:12]} 23. Bf2 {[%emt 0:01:15]} Rae8 {[%emt 0:01:09]} 24. Nge2 {[%emt 0:00:31]} Ng6 {[%emt 0:02:39]} 25. Nc3 {[%emt 0:00:26]} Ra8 {[%emt 0:01:33]} 26. b3 {[%emt 0:10:25]} axb3 {[%emt 0:00:16]} 27. axb3 {[%emt 0:00:08]} Qa5 {[%emt 0:01:22]} 28. Rc1 {[%emt 0:07:29]} Bb4 {[%emt 0:00:43]} 29. Red1 {[%emt 0:00:21]} Qg5 {[%emt 0:01:43]} 30. Na4 {[%emt 0:01:05]} Nh5 {[%emt 0:00:48]} 31. Nb6 {[%emt 0:00:38]} Rae8 {[%emt 0:00:33]} 32. Nxd7 {[%emt 0:00:11]} Rxd7 {[%emt 0:00:04]} 33. Nf5 {[%emt 0:00:14]} Ne7 {[%emt 0:00:51]} 34. h4 {[%emt 0:02:44]} Qf6 {[%emt 0:00:27]} 35. g3 {[%emt 0:01:50]} Nxf5 {[%emt 0:00:07]} 36. exf5 {[%emt 0:00:01]} Rde7 {[%emt 0:00:52]} 37. Kg2 {[%emt 0:00:44]} Bc5 {[%emt 0:00:16]} 38. Be1 {[%emt 0:00:43]} Re3 {[%emt 0:00:51]} 39. Bc3 {[%emt 0:00:31]} Qe7 {[%emt 0:00:34]} 40. Qd2 {[%emt 0:00:00]} Ba3 {[%emt 0:00:00]} 41. Ra1 {[%emt 0:02:11]} Bc5 {[%emt 0:10:42]} 42. Re1 {[%emt 0:06:26]} d5 {[%emt 0:04:20]} 43. Rxe3 {[%emt 0:02:54]} Bxe3 {[%emt 0:00:07]} 44. Qc2 {[%emt 0:02:11]} Qd6 {[%emt 0:02:15]} 45. f4 {[%emt 0:01:39]} d4 {[%emt 0:05:51]} 46. Be1 {[%emt 0:02:06]} Nf6 {[%emt 0:04:58]} 47. Be2 {[%emt 0:01:17]} Ne4 {[%emt 0:00:51]} 48. Rd1 {[%emt 0:00:17]} Qf6 {[%emt 0:01:02]} 49. Bd3 {[%emt 0:03:03]} Qxf5 {[%emt 0:01:35]} 50. b4 {[%emt 0:02:37]} Qg4 {[%emt 0:01:15]} 51. Be2 {[%emt 0:00:44]} Qe6 {[%emt 0:00:33]} 52. c5 {[%emt 0:00:32]} Nf6 {[%emt 0:01:17]} 53. Bc4 {[%emt 0:03:00]} Nd5 {[%emt 0:00:44]} 54. Kh2 {[%emt 0:00:07]} Qg4 {[%emt 0:01:08]} 55. Ra1 {[%emt 0:01:43]} g6 {[%emt 0:01:24]} 56. Qd1 {[%emt 0:02:35]} Qf5 {[%emt 0:00:27]} 57. Qd3 {[%emt 0:02:26]} Qg4 {[%emt 0:00:22]} 58. Qd1 {[%emt 0:00:21]} Qe6 {[%emt 0:00:24]} 59. Qf3 {[%emt 0:00:32]} Qf5 {[%emt 0:00:21]} 60. Qd1 {[%emt 0:02:41]} h5 {[%emt 0:00:55]} 61. Qd3 {[%emt 0:00:16]} Qg4 {[%emt 0:00:23]} 62. Qd1 {[%emt 0:00:08]} Qe6 {[%emt 0:00:30]} 63. Qd3 {[%emt 0:00:09]} Qg4 {[%emt 0:00:31]} 64. Qd1 {[%emt 0:00:08]} Qd7 {[%emt 0:00:14]} 65. Qd3 {[%emt 0:00:09]} Kg7 {[%emt 0:00:43]} 66. b5 {[%emt 0:00:41]} Nf6 {[%emt 0:00:28]} 67. Qf1 {[%emt 0:00:26]} Ng4+ {[%emt 0:00:33]} 68. Kh1 {[%emt 0:00:07]} Re7 {[%emt 0:00:37]} 69. Rb1 {[%emt 0:00:37]} Qf5 {[%emt 0:00:15]} 70. Be2 {[%emt 0:01:40]} Qxb1 {[%emt 0:00:10]} 0-1

[Event "AUT Bundesliga 2022-23"]
[Site "Jenbach"]
[Date "2022.11.06"]
[Round "4.33"]
[White "Sadilek, Maximilian"]
[Black "Leisch, Lukas"]
[Result "0-1"]
[ECO "B24"]
[WhiteElo "2260"]
[BlackElo "2395"]
[Annotator "ChessBase"]
[PlyCount "118"]
[EventDate "2022.11.03"]
[EventType "team-tourn"]
[EventCountry "AUT"]
[SourceTitle "playchess.com"]
[Source "ChessBase"]
[SourceQuality "1"]
[TimeControl "40/5400+30:1800+30"]

1. e4 {[%emt 0:00:07]} c5 {[%emt 0:00:07]} 2. Nc3 {[%emt 0:00:19]} Nc6 {[%emt 0:00:08]} 3. d3 {[%emt 0:00:57]} e6 {[%emt 0:07:10]} 4. g3 {[%emt 0:01:07]} g6 {[%emt 0:06:17]} 5. Bg2 {[%emt 0:00:23]} Bg7 {[%emt 0:00:05]} 6. Nge2 {[%emt 0:02:03]} Nge7 {[%emt 0:00:14]} 7. Be3 {[%emt 0:06:14]} d6 {[%emt 0:01:32]} 8. d4 {[%emt 0:06:26]} Qb6 {[%emt 0:00:25]} 9. dxc5 {[%emt 0:03:28]} dxc5 {[%emt 0:00:07]} 10. O-O {[%emt 0:00:08]} O-O {[%emt 0:00:12]} 11. Na4 {[%emt 0:39:00]} Qa5 {[%emt 0:01:19]} 12. c3 {[%emt 0:04:21]} b6 {[%emt 0:01:51]} 13. b3 {[%emt 0:03:30]} Ba6 {[%emt 0:06:18]} 14. Re1 {[%emt 0:03:21]} Bxe2 {[%emt 0:23:11]} 15. Rxe2 {[%emt 0:03:20]} Bxc3 {[%emt 0:00:50]} 16. Nxc3 {[%emt 0:00:19]} Qxc3 {[%emt 0:00:02]} 17. Rc1 {[%emt 0:01:20]} Rad8 {[%emt 0:01:56]} 18. Rd2 {[%emt 0:01:23]} Rxd2 {[%emt 0:01:04]} 19. Bxd2 {[%emt 0:00:09]} Qd3 {[%emt 0:02:34]} 20. Qe1 {[%emt 0:07:59]} Nd4 {[%emt 0:05:42]} 21. Kh1 {[%emt 0:02:07]} Nf3 {[%emt 0:02:01]} 22. Bxf3 {[%emt 0:02:24]} Qxf3+ {[%emt 0:00:10]} 23. Kg1 {[%emt 0:00:02]} Rd8 {[%emt 0:00:40]} 24. Rc3 {[%emt 0:05:00]} Rd3 {[%emt 0:01:33]} 25. Rxd3 {[%emt 0:01:38]} Qxd3 {[%emt 0:00:16]} 26. b4 {[%emt 0:04:58]} Nc6 {[%emt 0:03:48]} 27. bxc5 {[%emt 0:00:18]} Nd4 {[%emt 0:02:51]} 28. Kg2 {[%emt 0:00:03]} Qf3+ {[%emt 0:08:01]} 29. Kg1 {[%emt 0:00:26]} Ne2+ {[%emt 0:02:43]} 30. Kf1 {[%emt 0:00:02]} bxc5 {[%emt 0:00:07]} 31. Bh6 {[%emt 0:00:50]} Nd4 {[%emt 0:02:05]} 32. Kg1 {[%emt 0:00:17]} Ne2+ {[%emt 0:00:02]} 33. Kf1 {[%emt 0:00:06]} Nxg3+ {[%emt 0:02:02]} 34. hxg3 {[%emt 0:00:13]} Qh1+ {[%emt 0:00:05]} 35. Ke2 {[%emt 0:00:05]} Qxh6 {[%emt 0:00:11]} 36. Qa5 {[%emt 0:00:57]} Qh5+ {[%emt 0:00:20]} 37. Ke3 {[%emt 0:01:03]} Qg5+ {[%emt 0:00:05]} 38. Ke2 {[%emt 0:00:42]} Qe7 {[%emt 0:02:41]} 39. Qb5 {[%emt 0:01:30]} Qc7 {[%emt 0:00:39]} 40. Kd3 {[%emt 0:00:00]} Qd6+ {[%emt 0:00:00]} 41. Kc2 {[%emt 0:04:41]} Kg7 {[%emt 0:04:03]} 42. Qa5 {[%emt 0:01:58]} a6 {[%emt 0:03:10]} 43. f4 {[%emt 0:01:05]} f6 {[%emt 0:05:40]} 44. a4 {[%emt 0:03:11]} e5 {[%emt 0:02:56]} 45. fxe5 {[%emt 0:00:19]} fxe5 {[%emt 0:00:09]} 46. Kc1 {[%emt 0:02:29]} h5 {[%emt 0:01:12]} 47. Kc2 {[%emt 0:04:14]} Kh6 {[%emt 0:00:39]} 48. Qe1 {[%emt 0:03:04]} Qd4 {[%emt 0:00:54]} 49. a5 {[%emt 0:00:16]} c4 {[%emt 0:02:20]} 50. Qc1+ {[%emt 0:00:14]} Kg7 {[%emt 0:01:09]} 51. Qg5 {[%emt 0:01:23]} Qxe4+ {[%emt 0:00:15]} 52. Kc3 {[%emt 0:00:09]} Qd4+ {[%emt 0:01:48]} 53. Kb4 {[%emt 0:02:12]} c3+ {[%emt 0:00:05]} 54. Kb3 {[%emt 0:00:04]} Qd5+ {[%emt 0:01:13]} 55. Kxc3 {[%emt 0:00:26]} Qxa5+ {[%emt 0:00:05]} 56. Kb3 {[%emt 0:00:42]} Qb5+ {[%emt 0:00:43]} 57. Ka3 {[%emt 0:01:04]} Qc5+ {[%emt 0:00:24]} 58. Ka4 {[%emt 0:00:17]} Qc4+ {[%emt 0:00:11]} 59. Ka3 {[%emt 0:00:02]} Qe6 {[%emt 0:00:43]} 0-1

[Event "AUT Bundesliga 2022-23"]
[Site "Jenbach"]
[Date "2022.11.06"]
[Round "4.34"]
[White "Kilgus, Georg"]
[Black "Leitner, Gerald"]
[Result "1-0"]
[ECO "A04"]
[WhiteElo "2397"]
[BlackElo "2167"]
[Annotator "ChessBase"]
[PlyCount "59"]
[EventDate "2022.11.03"]
[EventType "team-tourn"]
[EventCountry "AUT"]
[SourceTitle "playchess.com"]
[Source "ChessBase"]
[SourceQuality "1"]
[TimeControl "40/5400+30:1800+30"]

1. Nf3 {[%emt 0:00:03]} c5 {[%emt 0:00:01]} 2. e3 {[%emt 0:01:08]} Nf6 {[%emt 0:00:26]} 3. d4 {[%emt 0:00:17]} e6 {[%emt 0:00:23]} 4. Bd3 {[%emt 0:01:54]} Nc6 {[%emt 0:04:46]} 5. O-O {[%emt 0:00:50]} d5 {[%emt 0:01:42]} 6. b3 {[%emt 0:00:48]} cxd4 {[%emt 0:00:24]} 7. exd4 {[%emt 0:00:05]} Bd6 {[%emt 0:01:29]} 8. Bg5 {[%emt 0:08:56]} h6 {[%emt 0:00:29]} 9. Bh4 {[%emt 0:00:06]} Bd7 {[%emt 0:03:54]} 10. c4 {[%emt 0:00:27]} g5 {[%emt 0:02:12]} 11. Bg3 {[%emt 0:00:10]} Bxg3 {[%emt 0:00:05]} 12. fxg3 {[%emt 0:16:15]} dxc4 {[%emt 0:10:46]} 13. bxc4 {[%emt 0:00:06]} g4 {[%emt 0:18:38]} 14. Ne5 {[%emt 0:03:12]} Nxd4 {[%emt 0:00:31]} 15. Bg6 {[%emt 0:23:10]} Nf5 {[%emt 0:00:54]} 16. Nxf7 {[%emt 0:11:07]} Qb6+ {[%emt 0:01:00]} 17. Rf2 {[%emt 0:00:05]} O-O {[%emt 0:01:11]} 18. Nc3 {[%emt 0:11:37]} Rxf7 {[%emt 0:02:58]} 19. Bxf7+ {[%emt 0:00:05]} Kxf7 {[%emt 0:00:05]} 20. Rb1 {[%emt 0:00:07]} Qc7 {[%emt 0:02:31]} 21. Qd3 {[%emt 0:00:45]} Re8 {[%emt 0:15:23]} 22. Ne4 {[%emt 0:00:46]} b6 {[%emt 0:10:25]} 23. Nxf6 {[%emt 0:00:15]} Kxf6 {[%emt 0:00:03]} 24. Qd4+ {[%emt 0:00:07]} Ke7 {[%emt 0:05:41]} 25. Qxg4 {[%emt 0:01:28]} Kd8 {[%emt 0:00:08]} 26. Qe4 {[%emt 0:03:17]} Bc6 {[%emt 0:04:00]} 27. Qd3+ {[%emt 0:00:03]} Kc8 {[%emt 0:00:08]} 28. c5 {[%emt 0:00:03]} bxc5 {[%emt 0:05:24]} 29. Rfb2 {[%emt 0:03:45]} Nd4 {[%emt 0:02:34]} 30. Qa6+ {[%emt 0:02:15]} 1-0